Cogmind - Beta 15 @@@ ROGUE MODE // 2025.07.20 @ 11:18:55 Player: carterz30cal Result: Destroyed self with Grenade Launcher Performance ------------- Evolutions (0) 0 Regions Visited (2) 400 Robots Destroyed (13) 65 Value Destroyed (301) 301 Prototype IDs (0) 0 Alien Tech Used (0) 0 Bonus (0) 0 TOTAL SCORE: 766 Bonus ------- None Cogmind --------- Core Integrity 0/250 Matter 170/300 Energy 100/100 System Corruption 1% Temperature Cool (0) Movement Treading (160) Location -10/Mines Parts ------- > --- POWER (1) -------- (None) > --- PROPULSION (2) --- Light Treads > --- UTILITY (2) ------ Small Storage Unit Seismic Detector > --- WEAPON (2) ------- Grenade Launcher > --- INVENTORY (8) ---- Small Matter Pod (0) High-capacity Matter Pod (0) Small Laser Assault Rifle Light Cannon Peak State ------------ > --- POWER ------------ Light Ion Engine > --- PROPULSION ------- Light Treads Light Treads > --- UTILITY ---------- Small Storage Unit Signal Interpreter > --- WEAPON ----------- Assault Rifle Light Cannon > --- INVENTORY -------- Small Matter Pod Small Laser Grenade Launcher [Rating: 7] Favorites ----------- Power Ion Engine Engine Ion Engine Propulsion Light Treads Treads Light Treads Utility Small Storage Unit Device Seismic Detector Storage Small Storage Unit Processor Signal Interpreter Weapon Assault Rifle Energy Gun Small Laser Ballistic Gun Assault Rifle Ballistic Cannon Light Cannon Launcher Grenade Launcher Build | -11 -10 -10 ------- Run | Yrd Mat Min Slots Evolved . | . . . Power . | . . . Propulsion . | . . . Utility . | . . . Weapon . | . . . Parts Attached 12 | 6 4 2 Power 2 | 2 . . Engine 2 | 2 . . Core . | . . . Reactor . | . . . Propulsion 3 | 2 1 . Treads 3 | 2 1 . Leg . | . . . Wheel . | . . . Hover . | . . . Flight . | . . . Utility 3 | 1 1 1 Device 1 | . . 1 Storage 1 | 1 . . Processor 1 | . 1 . Hackware . | . . . Protection . | . . . Artifact . | . . . Weapon 4 | 1 2 1 Energy Gun 1 | . 1 . Energy Cannon . | . . . Ballistic Gun 1 | 1 . . Ballistic Cannon 1 | . 1 . Launcher 1 | . . 1 Special Weapon . | . . . Impact Weapon . | . . . Slashing Weapon . | . . . Piercing Weapon . | . . . Special Melee Weapon . | . . . Unidentified Prototypes . | . . . Parts Lost 3 | . 2 1 Power 2 | . 2 . Propulsion 1 | . . 1 Utility . | . . . Weapon . | . . . Highest Loss Streak 1 | . 1 1 To Critical Strikes . | . . . Average Backups 1 | . 2 6 Power . | . . . Propulsion . | . . 1 Utility . | . . 2 Weapon . | . 1 3 Tool/Special . | . . . Unused Backups 3 | . . 3 Power . | . . . Propulsion . | . . . Utility 2 | . . 2 Weapon 1 | . . 1 Tool/Special . | . . . Average Slot Usage (%) 78 | . 80 37 Engine 11 | . 12 . Treads 25 | . 25 11 Storage 14 | . 14 14 Processor 3 | . 3 . Energy Gun 1 | . 1 . Ballistic Gun 12 | . 12 . Ballistic Cannon 8 | . 9 . Peak Build Rating 7 | 5 7 5 Average Rating 5 | 4 5 2 On Entrance 2 | . 5 1 Naked Turns . | . . . Heaviest Build 15 | 12 15 9 Greatest Support 40 | 40 40 40 Greatest Overweight (x) 2 | . 2 1 Average Overweight (x) . | . . . Largest Inventory Capacity 8 | 8 8 8 Average Capacity 7 | 7 8 8 Most Carried 8 | 1 8 8 Average Carried 1 | . 2 6 Final Capacity 8 | 8 8 8 Final Carried 8 | 1 8 5 Class Distribution -------------------- 100% | Mutant Dominant Class ---------------- Mutant | -10/Materials Mutant | -10/Mines Resources | -11 -10 -10 ----------- Run | Yrd Mat Min Matter Collected 613 | 247 305 61 Remotely . | . . . Salvage Created 376 | . 374 2 Parts 22 | . 22 . Haulers Intercepted 2 | . 2 . Recyclers Shooed . | . . . Parts Field Recycled . | . . . Retrieved Matter . | . . . Parts Self-Destructed . | . . . Prevented . | . . . Kills | -11 -10 -10 ------- Run | Yrd Mat Min Combat Hostiles Destroyed 12 | . 10 2 Guns 8 | . 8 . Cannons 2 | . 2 . AOE 2 | . . 2 Classes Destroyed 5 | . 4 1 Hauler 2 | . 2 . Watcher 1 | . 1 . Swarmer 3 | . 3 . Grunt 7 | . 7 . Assembled 2 | . . 2 Best Kill Streak 3 | . 3 2 Combat Bots Only 3 | . 3 2 Max Kills in Single Turn 2 | . 1 2 Gunslinging . | . . . Exploded 2 | . . 2 Melee . | . . . Uniques/NPCs Destroyed . | . . . Combat | -11 -10 -10 -------- Run | Yrd Mat Min Hostile Shots Fired 99 | . 95 4 Missed 28 | . 27 1 Hits 71 | . 68 3 Melee 1 | . . 1 Projectile 70 | . 68 2 Damage Taken 835 | . 733 102 Core 255 | . 199 56 Absorbed by Shields . | . . . Regen/Repaired (Parts) 35 | . 35 . Core Remaining (%) 100 | 100 . . Volleys Fired 70 | . 68 2 Largest 2 | . 2 1 Hottest 60 | . 60 30 Shots Fired 110 | . 108 2 Gun 71 | . 71 . Cannon 37 | . 37 . Launcher 2 | . . 2 Special . | . . . Kinetic 105 | . 105 . Thermal 3 | . 3 . Explosive 2 | . . 2 Electromagnetic . | . . . Robot Hit Streak 14 | . 14 1 Robot Miss Streak 4 | . 4 1 Penetration Max . | . . . Secondary Targets . | . . . Shots Hit Robots 66 | . 65 1 Core Hits 25 | . 21 4 Critical Kills . | . . . Critical Parts Destroyed 1 | . 1 . Critical Strikes 1 | . 1 . Destroy 1 | . 1 . Melee Attacks . | . . . Impact . | . . . Slashing . | . . . Piercing . | . . . Sneak Attacks . | . . . Combat Hostiles . | . . . Follow-up Attacks . | . . . Damage Inflicted 1079 | . 957 122 Guns 620 | . 620 . Cannons 337 | . 337 . Explosions 122 | . . 122 Melee . | . . . Ramming . | . . . Kinetic 945 | . 945 . Thermal 12 | . 12 . Explosive 122 | . . 122 Electromagnetic . | . . . Impact . | . . . Slashing . | . . . Piercing . | . . . Highest Corruption 1 | . 1 1 Average Corruption 1 | . 1 1 Corruption Purged . | . . . Corruption Blocked . | . . . Effects 11 | . 10 1 Message Errors 2 | . 1 1 Matter Fused 4 | . 4 . Heat Flow Errors 2 | . 2 . Parts Fused 1 | . 1 . Data Loss (minor) 1 | . 1 . Misfires 1 | . 1 . Overload Shots . | . . . Overflow Damage 4 | . . 4 Projectiles . | . . . Explosions 4 | . . 4 Melee . | . . . Knockbacks 10 | . 10 . Impact . | . . . Kinetic 8 | . 8 . Secondary 2 | . 2 . Self-Inflicted Damage 68 | . . 68 Shots 2 | . . 2 Rammed . | . . . Targets Rammed . | . . . Kicked . | . . . Crushed . | . . . Highest Temperature 136 | . 136 . Average Temperature 22 | . 22 . Received Heat Transfer 303 | . 303 . Siege Activations . | . . . Martial Activations . | . . . Shielding Activations . | . . . Robots Disrupted . | . . . Combat Hostiles . | . . . Robots Corrupted . | . . . Combat Hostiles . | . . . Parts Fried . | . . . Impact Corruptions . | . . . Robots Melted . | . . . Combat Hostiles . | . . . Parts Melted . | . . . Heat Transferred 25 | . 25 . Parts Sabotaged . | . . . Parts Stolen . | . . . Parts Stripped . | . . . Power Chain Reactions . | . . . Alert | -11 -10 -10 ------- Run | Yrd Mat Min Maximum Alert Level . | . . . Low Security (%) 100 | 100 100 100 Level 1 . | . . . Level 2 . | . . . Level 3 . | . . . Level 4 . | . . . Level 5 . | . . . High Security . | . . . Max Security . | . . . Peak Influence 64 | . 64 15 Initial 15 | . . 15 Average 8 | . 19 8 Influence Increases 318 | . 305 13 Destroy 0b10 Robot/C 200 | . 200 . Destroy 0b10 Robot/NC 15 | . 15 . Destroy Leader 46 | . 46 . Successful Hack 11 | . 11 . Destroy Structure 16 | . 3 13 Lose Combat Pursuer 30 | . 30 . Influence Decreases 305 | . 265 40 Entered New Map 25 | . . 25 Time Decay 261 | . 246 15 Lost Part 19 | . 19 . Squads Dispatched 2 | . 2 . Investigation 2 | . 2 . Extermination . | . . . Reinforcement . | . . . Assault . | . . . Garrison . | . . . Intercept . | . . . Searches Triggered . | . . . Construction Impeded . | . . . Haulers Reinforced . | . . . Active Scanning Responses . | . . . Cargo Convoy Interrupts . | . . . Stealth | -11 -10 -10 --------- Run | Yrd Mat Min Distress Signals 1 | . 1 . Communications Jammed . | . . . Distress Signals . | . . . Times Spotted 35 | . 20 15 Peak Tracking Total 18 | . 4 18 Tactical Retreats 2 | . 1 1 Traps | -11 -10 -10 ------- Run | Yrd Mat Min Traps Triggered 4 | . 4 . Indirectly . | . . . Trap Hack Attempts . | . . . Triggered . | . . . Disarmed . | . . . Reprogrammed . | . . . Reused . | . . . Traps Extracted . | . . . Installed . | . . . Triggered . | . . . Machines | -11 -10 -10 ---------- Run | Yrd Mat Min Machines Disabled . | . . . Max in Single Turn . | . . . Machines Repaired . | . . . Machines Dismantled . | . . . Machines Sabotaged . | . . . Overloaded Fab Kills . | . . . Hacking | -11 -10 -10 --------- Run | Yrd Mat Min Machines Accessed 7 | . 7 . Terminals 5 | . 5 . Fabricators . | . . . Repair Stations 1 | . 1 . Recycling Units 1 | . 1 . Scanalyzers . | . . . Garrison Access . | . . . Total Hacks 22 | . 22 . Successful 13 | . 13 . Failed 9 | . 9 . Catastrophic 2 | . 2 . Database Lockouts . | . . . Manual 9 | . 9 . Terminals 18 | . 18 . Fabricators . | . . . Repair Stations 2 | . 2 . Recycling Units 2 | . 2 . Scanalyzers . | . . . Garrison Access . | . . . Terminal Hacks 7 | . 7 . Robot Analysis 3 | . 3 . Emergency Access Points 1 | . 1 . Terminal Index 1 | . 1 . Alert Level 1 | . 1 . Zone Layout 1 | . 1 . Fabricator Hacks . | . . . Repair Station Hacks 2 | . 2 . Scan Component 1 | . 1 . Repair 1 | . 1 . Recycling Unit Hacks . | . . . Scanalyzer . | . . . Garrison Access Hacks . | . . . Unauthorized Hacks 4 | . 4 . Terminals 2 | . 2 . Track 1 | . 1 . Botnet 1 | . 1 . Fabricators . | . . . Repair Stations . | . . . Recycling Units 2 | . 2 . Reject 1 | . 1 . Mask 1 | . 1 . Scanalyzers . | . . . Garrison Access . | . . . Data Cores Recovered . | . . . Used . | . . . Hacking Detections 6 | . 6 . Full Trace Events 2 | . 2 . Feedback Events 1 | . 1 . Corruption 1 | . 1 . Feedback Blocked . | . . . Robot Schematics Acquired . | . . . Robots Built . | . . . Authchips . | . . . Time . | . . . Total Robot Build Rating . | . . . Part Schematics Acquired . | . . . Parts Built . | . . . Authchips . | . . . Time . | . . . Total Part Build Rating . | . . . Parts Repaired 1 | . 1 . Time 26 | . 26 . Parts Recycled . | . . . Recycled Matter . | . . . Retrieved Matter . | . . . Retrieved Components . | . . . Parts Scanalyzed . | . . . Part Schematics Acquired . | . . . Parts Damaged . | . . . Bothacking | -11 -10 -10 ------------ Run | Yrd Mat Min Used RIF Installer . | . . . Robots Hacked . | . . . Non-combat . | . . . Combat . | . . . Robot Hacks Applied . | . . . Relay Couplers Released . | . . . Fabnet Peak Effective % . | . . . Robots Rewired . | . . . Allies Hacked . | . . . Hacks Repelled . | . . . Allies | -11 -10 -10 -------- Run | Yrd Mat Min Total Allies . | . . . Largest Group . | . . . Highest-Rated Group . | . . . Highest-Rated Ally . | . . . Total Orders . | . . . Ally Attacks . | . . . Total Damage . | . . . Kills . | . . . Allies Corrupted . | . . . Allies Melted . | . . . Intel | -11 -10 -10 ------- Run | Yrd Mat Min Active Infowar (turns) 13 | . . 13 Seismic 13 | . . 13 Robot Analysis Total 3 | . 3 . Derelict Logs Recovered . | . . . Drone Launches . | . . . Drone Recoveries . | . . . Exploration | -11 -10 -10 ------------- Run | Yrd Mat Min Turns Passed 2139 | 1153 937 49 Spaces Moved 604 | 118 453 33 Core 81 | 2 61 18 Treads 523 | 116 392 15 Legs . | . . . Wheels . | . . . Hover . | . . . Flight . | . . . Fastest Speed 50 | 50 100 100 Average Speed 151 | 158 152 127 Slowest Speed 160 | 160 160 160 Overloaded Moves . | . . . Propulsion Burnouts . | . . . Robots Hopped . | . . . Potential Cave-ins . | . . . Cave-ins Triggered . | . . . Exploration Rate (%) 33 | 19 69 13 Regions Visited 2 Branch Regions 1 Pre-discovered Areas . | . . . Known Exits Taken 1 | . 1 . Unknown Exits Taken 1 | 1 . . Scrap Searched 1 | . . 1 Spaces Dug . | . . . Terrain Destroyed 13 | . . 13 Melee . | . . . Projectile . | . . . AOE 13 | . . 13 Terrain Rammed . | . . . Walls Destroyed . | . . . Machines Disabled . | . . . Actions | -11 -10 -10 --------- Run | Yrd Mat Min Total 1712 | 1082 591 39 Wait 1017 | 959 58 . Move 602 | 117 452 33 Hop . | . . . Pick Up 7 | . 7 . Fast Attach 9 | 5 3 1 Attach 4 | . 1 3 Detach . | . . . Swap 3 | 1 2 . Drop . | . . . Fire 70 | . 68 2 Melee . | . . . Ram . | . . . Kick . | . . . Crush . | . . . Escape Stasis . | . . . Rewire . | . . . Trap . | . . . Miscellaneous . | . . . Route ------- -11/Scrapyard -10/Materials (discovered 3 exits: [*Mat] / *Min x2) -10/Mines History --------- Turn | Location | Event 11 | -11/Scrapyard | Discovered new exit (range 14) 1154 | -11/Scrapyard | Entered Materials 1155 | -10/Materials | Build established: Mutant 1279 | -10/Materials | Discovered new exit (range 13) 1386 | -10/Materials | Core integrity fell below 50% 1596 | -10/Materials | Discovered new exit (range 16) 1808 | -10/Materials | Identified exit to Mines 1888 | -10/Materials | Repaired Lgt. Cannon 1921 | -10/Materials | Discovered exit to Mines (range 10) 2091 | -10/Materials | Entered Mines 2096 | -10/Mines | Assembled infested the area 2101 | -10/Mines | Assisted by a Guerilla fighting off Assembled 2136 | -10/Mines | Core integrity fell below 20% 2140 | -10/Mines | Destroyed self with Grenade Launcher Last Messages --------------- coming from, and they're closing on this area, come on!" 02104_ GW-C46(h): "I'll hold them off! Go on ahead or try to find another way!" 02112_ G&X2&O=IPI:A> H&GOQQ3D6LC%DJDZHXA&FWL 02122_ HV Slug penetrates Wall. 02124_ HV Slug penetrates as-82412. 02124_ as-82412 suffers critical hit (Destroy). 02124_ as-82412 knocked back. 02124_ Searching scrap... 02124_ Found Med. Laser. 02124_ Found Seismic Detector. 02124_ Found 61 Matter. 02125_ Acquired 61 matter. 02125_ GW-C46(h) destroyed. [Achievement: Slippery One] 02127_ Acquired Seismic Detector. 02133_ Lgt. Treads destroyed. 02138_ Destroyed Asb. Hover Unit. 02138_ as-77836 destroyed. 02138_ as-82412 destroyed. Map ----- +----------------------------------------------------+ | ??????????????????????????????????????????????? | | ??????????????????????????????????????????????? | | ??????????????????????????????????????????????? | | ??????????????????????????????????????????????? | | ??????????????????????????????????????????????? | | ??????????????????????????????????????????????? | | ??????????????????????????????????????????????? | | ??????????????????????????????????????????????? | | ??????????????????????????????????????????????? | | ??????????????????????????????????????????????? | | ??????????????????????????????????????????????? | | ??????????????????????????????????????????????? | | ??????????????????????????????????????????????? | | ??????????????????????????????????????????????? | | ??????????????????????????????????????????????? | | ??????????????????????????????????????????????? | | ??????????????????????????????????????????????? | | ??????????????????????????????????????????????? | | ??????????????????????????????????????????????? | | ?????????????????????????????????###??????????? | | ???????????????????????????????## ##?????????? | | ?????????????????????????????## ##????????? | | ???????????????????????####### ##???????? | | ???????????????????????# #???????? | | ???????????????????????# #??????##?????? | | ???????????????????????# @ # ##????? #?????? | | ???????????????????????# a ##????? #?????? | | ???????????????????????# [ # ###### ##????? | | ???????????????????????##a## #????? | | ???????????????? #####!# ##???? | | ?????????????? a%! ##??? | | ?????????????? #### #??? | | ??????????????? ####??????## """ #??? | | ????????????????????????????## """ ##??? | | ????????????????????????????## """ ###???? | | ????????????????????????????# ##?????? | | ????????????????????????????# #??????? | | ????????????????????????????# ##??????? | | ????????????????????????????## ##???????? | | ?????????????????????????????## #????????? | | ??????????????????????????????# #??????? | | ??????????????????????????????# #??????? | | ??????????????????????????????# ###??????? | | ?????????????????????????????# #????????? | | ???????????????????????????? #????????? | | ??????????????????????????? #????????? | | ??????????????????????????# ##????????? | | ??????????????????????????## ###?????????? | | ???????????????????????????#######????????????? | | ??????????????????????????????????????????????? | +----------------------------------------------------+ Best States ------------- Heat Dissipation 25 Energy Generation 10 Energy Capacity 250 Matter Stores 293 Matter Capacity 300 Sight Range 16 Terrain Scan Density 10 Evasion (%) 40 Recoil Reduction 2 Item Schematics ----------------- None Robot Schematics ------------------ None Fabricated ------------ Nothing Repaired ---------- Lgt. Cannon | 70% | -10/Materials Alien Tech Used ----------------- None Achievements -------------- Armchair Analyst Slippery One Challenges ------------ None Game ------ Seed UtilityBackupChainsaw Manual? 0 Play Time 00:11:14 Cumulative 17.1 hours Start 2025.07.20 @ 11:08:20 End 2025.07.20 @ 11:18:55 Sessions 1 Manual Loads 0 Difficulty Rogue Special Mode None Game No. 31 Rogue 31 Adventurer 0 Explorer 0 Win Type - Total 0 Types 0/0/0/0/0/0/0/0/0/0 Lore% 8 Gallery% 17 Achievement% 21 Wizard Run 0 Options --------- Layout 0 ASCII 0 Keyboard 0 Movement Arrows Keybinds 0 Fullscreen 1 Font 18/Smallcaps Map View 76x50 Zoom Use 0% Tactical HUD 1 Map Filters NONE Filters NONE Steam 1 RUN: 46faa82e-5147-486f-8b48-fc38a37c8a39